fUSD/lending_fUSD_20241203
["ID","MTS","AMOUNT","RATE_DAILY","PERIOD"]
[344047866,1733246439721,-500.0,0.00025547,120]
[344047867,1733246439766,-2200.28,0.00025547,120]
[344047868,1733246439812,-500.0,0.00025547,120]
[344047869,1733246439857,-500.0,0.00025547,120]
[344047870,1733246439909,-500.0,0.00025547,120]
[344047871,1733246439957,-500.0,0.00025547,120]
[344047872,1733246440003,-500.0,0.00025547,120]
[344047873,1733246440048,-215.35428896,0.00025547,120]
[344047874,1733246440096,-500.0,0.00025547,120]
[344047875,1733246440146,-500.0,0.00025547,120]
[344047876,1733246440193,-1586.18,0.00025547,120]
[344047877,1733246440255,-586.18981266,0.00025547,120]
[344047878,1733246440305,-500.0,0.00025547,120]
[344047879,1733246440354,-2106.08,0.00025547,120]
[344047880,1733246440403,-729.66,0.00025547,120]
[344047881,1733246440452,-500.0,0.00025547,120]
[344047882,1733246440503,-500.0,0.00025547,120]
[344047883,1733246440552,-500.0,0.00025547,120]
[344047884,1733246440601,-1230.9,0.00025547,120]
[344047885,1733246440649,-3434.75,0.00025547,120]
[344047886,1733246440697,-500.0,0.00025547,120]
[344047887,1733246440745,-500.0,0.00025547,120]
[344047888,1733246440793,-500.0,0.00025547,30]
[344047889,1733246440844,-500.0,0.00025547,120]
[344047890,1733246440893,-500.0,0.00025547,120]
[344047891,1733246440942,-3506.65,0.00025547,120]
[344047892,1733246440994,-500.0,0.00025547,120]
[344047893,1733246441042,-785.58,0.00025547,120]
[344047894,1733246441093,-1768.26,0.00025547,120]
[344047895,1733246441141,-500.0,0.00025547,120]
[344047896,1733246441191,-500.0,0.00025547,120]
[344047897,1733246441251,-1179.11,0.00025547,120]
[344047898,1733246441301,-500.0,0.00025547,120]
[344047899,1733246441351,-500.0,0.00025547,120]
[344047900,1733246441400,-500.0,0.00025547,120]
[344047901,1733246441452,-741.56,0.00025547,120]
[344047902,1733246441505,-500.0,0.00025547,120]
[344047903,1733246441557,-1148.12,0.00025547,120]
[344047904,1733246441607,-976.18,0.00025547,120]
[344047905,1733246441657,-500.0,0.00025547,120]
[344047906,1733246441708,-500.0,0.00025547,120]
[344047907,1733246441760,-500.0,0.00025547,120]
[344047908,1733246441808,-646.96,0.00025547,120]
[344047909,1733246441858,-2297.92,0.00025547,120]
[344047910,1733246441910,-3346.01,0.00025547,120]
[344047911,1733246441965,-2351.25,0.00025547,120]
[344047912,1733246442012,-2656.78,0.00025547,120]
[344047913,1733246442060,-500.0,0.00025547,120]
[344047914,1733246442108,-534.59508702,0.00025547,120]
[344047915,1733246442155,-1084.25,0.00025547,120]
[344047916,1733246442208,-1091.34,0.00025547,120]
[344047917,1733246442264,-500.0,0.00025547,120]
[344047918,1733246442313,-1582.14,0.00025547,120]
[344047919,1733246442363,-1078.34,0.00025547,120]
[344047920,1733246442417,-1006.13,0.00025547,120]
[344047921,1733246442467,-500.0,0.00025547,30]
[344047922,1733246442517,-2432.21,0.00025547,120]
[344047923,1733246442566,-500.0,0.00025547,120]
[344047924,1733246442616,-500.0,0.00025547,120]
[344047925,1733246442668,-507.54138833,0.00025547,120]
[344047926,1733246442718,-686.36,0.00025547,120]
[344047927,1733246442768,-837.7,0.00025547,120]
[344047928,1733246442817,-680.24,0.00025547,120]
[344047929,1733246442866,-500.0,0.00025547,120]
[344047930,1733246442918,-1816.21,0.00025547,120]
[344047931,1733246442968,-500.0,0.00025547,120]
[344047932,1733246443018,-1501.21,0.00025547,120]
[344047933,1733246443069,-751.27,0.00025547,120]
[344047934,1733246443118,-1139.25,0.00025547,120]
[344047935,1733246443168,-500.0,0.00025547,120]
[344047936,1733246443216,-500.0,0.00025547,120]
[344047937,1733246443271,-1054.65,0.00025547,120]
[344047938,1733246443322,-2443.1,0.00025547,120]
[344047939,1733246443373,-500.0,0.00025547,120]
[344047940,1733246443422,-616.48,0.00025547,120]
[344047941,1733246443471,-509.28754552,0.00025547,120]
[344047942,1733246443519,-660.7,0.00025547,120]
[344047943,1733246443569,-1094.37,0.00025547,120]
[344047944,1733246443619,-2231.72,0.00025547,120]
[344047945,1733246443666,-500.0,0.00025547,120]
[344047946,1733246443713,-500.0,0.00025547,120]
[344047947,1733246443761,-500.0,0.00025547,120]
[344047948,1733246443810,-3514.25,0.00025547,120]
[344047949,1733246443858,-681.68,0.00025547,120]
[344047950,1733246443913,-500.0,0.00025547,120]
[344047951,1733246443964,-1553.77,0.00025547,120]
[344047952,1733246444011,-500.0,0.00025547,120]
[344047953,1733246444464,-694.79,0.00025547,120]
[344047954,1733246444514,-500.0,0.00025547,120]
[344047955,1733246444562,-500.0,0.00025547,120]
[344047956,1733246444610,-500.0,0.00025547,120]
[344047957,1733246444656,-867.92,0.00025547,120]
[344047958,1733246444706,-500.0,0.00025547,120]
[344047959,1733246444753,-1452.32,0.00025547,120]
[344047960,1733246444800,-686.72,0.00025547,120]
[344047961,1733246444845,-500.0,0.00025547,120]
[344047962,1733246444894,-500.0,0.00025547,120]
[344047963,1733246444943,-1210.4,0.00025547,120]
[344047964,1733246445000,-2207.26,0.00025547,120]
[344047965,1733246445049,-1601.69,0.00025547,120]
[344047966,1733246445096,-1184.23,0.00025547,120]
[344047967,1733246445145,-1223.5,0.00025547,120]
[344047968,1733246445194,-4766.78,0.00025547,120]
[344047969,1733246445245,-500.0,0.00025547,120]
[344047970,1733246445292,-500.0,0.00025547,120]
[344047971,1733246445341,-1060.91,0.00025547,120]
[344047972,1733246445387,-2538.88,0.00025547,120]
[344047973,1733246445433,-514.25492398,0.00025547,120]
[344047974,1733246445483,-1210.81,0.00025547,120]
[344047975,1733246445529,-500.0,0.00025547,120]
[344047976,1733246445576,-1948.8,0.00025547,120]
[344047977,1733246445623,-668.19,0.00025547,120]
[344047978,1733246445669,-500.0,0.00025547,120]
[344047979,1733246445718,-500.0,0.00025547,120]
[344047980,1733246445765,-1277.13,0.00025547,120]
[344047981,1733246445813,-500.0,0.00025547,120]
[344047982,1733246445859,-2688.43,0.00025547,120]
[344047983,1733246445915,-500.0,0.00025547,120]
[344047984,1733246445962,-649.74,0.00025547,120]
[344047985,1733246446009,-500.0,0.00025547,120]
[344047986,1733246446055,-151.69100319,0.00025547,120]
[344047987,1733246446100,-500.0,0.00025547,120]
[344047988,1733246446146,-500.0,0.00025547,120]
[344047989,1733246446194,-11479.25,0.00025547,120]
[344047990,1733246446245,-500.0,0.00025547,120]
[344047991,1733246446291,-2011.93,0.00025547,120]
[344047992,1733246446337,-500.0,0.00025547,120]
[344047993,1733246446384,-1154.54,0.00025547,120]
[344047994,1733246446430,-500.0,0.00025547,120]
[344047995,1733246446479,-772.41,0.00025547,120]
[344047996,1733246446526,-1123.43,0.00025547,120]
[344047997,1733246446576,-2871.45,0.00025547,120]
[344047998,1733246446624,-500.0,0.00025547,120]
[344047999,1733246446673,-1522.72,0.00025547,120]
[344048000,1733246446722,-1947.01,0.00025547,120]
[344048001,1733246446771,-500.0,0.00025547,120]
[344048002,1733246446819,-500.0,0.00025547,120]
[344048003,1733246446868,-2669.91,0.00025547,120]
[344048004,1733246446924,-500.0,0.00025547,120]
[344048005,1733246446974,-511.62990443,0.00025547,120]
[344048006,1733246447023,-500.0,0.00025547,120]
[344048007,1733246447071,-2342.96,0.00025547,120]
[344048008,1733246447119,-567.5,0.00025547,120]
[344048009,1733246447167,-528.06,0.00025547,120]
[344048010,1733246447216,-1577.75,0.00025547,120]
[344048011,1733246447265,-500.0,0.00025547,120]
[344048012,1733246447314,-500.0,0.00025547,30]
[344048013,1733246447362,-728.69,0.00025547,120]
[344048014,1733246447410,-679.58,0.00025547,120]
[344048015,1733246447460,-500.0,0.00025547,120]
[344048016,1733246447511,-500.0,0.00025547,120]
[344048017,1733246447560,-653.72,0.00025547,120]
[344048018,1733246447609,-3601.58,0.00025547,120]
[344048019,1733246447658,-500.0,0.00025547,120]
[344048020,1733246447708,-883.17,0.00025547,120]
[344048021,1733246447755,-1060.08,0.00025547,120]
[344048022,1733246447806,-500.0,0.00025547,120]
[344048023,1733246447854,-628.18,0.00025547,120]
[344048024,1733246447904,-983.36,0.00025547,120]
[344048025,1733246447958,-2206.12,0.00025547,120]
[344048026,1733246448007,-500.0,0.00025547,120]
[344048027,1733246448057,-500.0,0.00025547,120]
[344048028,1733246448104,-586.83,0.00025547,120]
[344048029,1733246448152,-500.0,0.00025547,120]
[344048030,1733246448208,-500.0,0.00025547,120]
[344048031,1733246448258,-1092.46,0.00025547,120]
[344048032,1733246448307,-1164.12,0.00025547,120]
[344048033,1733246448356,-500.0,0.00025547,120]
[344048034,1733246448405,-777.01,0.00025547,120]
[344048035,1733246448456,-1486.63,0.00025547,120]
[344048036,1733246448507,-500.0,0.00025547,120]
[344048037,1733246448559,-1703.77,0.00025547,120]
[344048038,1733246448609,-500.0,0.00025547,120]
[344048039,1733246448659,-1012.5,0.00025547,120]
[344048040,1733246448714,-1064.47,0.00025547,120]
[344048041,1733246448767,-2212.28,0.00025547,120]
[344048042,1733246448817,-1439.03,0.00025547,120]
[344048043,1733246448869,-500.0,0.00025547,120]
[344048044,1733246448922,-500.0,0.00025547,120]
[344048045,1733246448975,-500.0,0.00025547,120]
[344048046,1733246449026,-500.0,0.00025547,120]
[344048047,1733246449332,-954.23,0.00025547,120]
[344048048,1733246449387,-1494.75,0.00025547,120]
[344048049,1733246449443,-500.0,0.00025547,120]
[344048050,1733246449496,-1293.95,0.00025547,120]
[344048051,1733246449548,-4964.27,0.00025547,120]
[344048052,1733246449597,-2631.99,0.00025547,120]
[344048053,1733246449650,-3929.33,0.00025547,120]
[344048054,1733246449698,-500.0,0.00025547,120]
[344048055,1733246449752,-1895.25,0.00025547,120]
[344048056,1733246449802,-2908.48,0.00025547,120]
[344048057,1733246449852,-500.0,0.00025547,120]
[344048058,1733246449901,-669.74,0.00025547,120]
[344048059,1733246449955,-1378.03,0.00025547,120]
[344048060,1733246450005,-1133.09,0.00025547,120]
[344048061,1733246450053,-1293.32,0.00025547,120]
[344048062,1733246450103,-948.42,0.00025547,120]
[344048063,1733246450153,-818.59,0.00025547,120]
[344048064,1733246450202,-500.0,0.00025547,120]
[344048065,1733246450254,-4345.48,0.00025547,120]
[344048066,1733246450305,-500.0,0.00025547,120]
[344048067,1733246450356,-3128.05,0.00025547,120]
[344048068,1733246450405,-4132.81,0.00025547,120]
[344048069,1733246450459,-500.0,0.00025547,60]
[344048070,1733246450508,-500.0,0.00025547,120]
[344048071,1733246450558,-692.33,0.00025547,120]
[344048072,1733246450606,-2434.08,0.00025547,120]
[344048073,1733246450657,-500.0,0.00025547,120]
[344048074,1733246450706,-500.0,0.00025547,120]
[344048075,1733246450757,-1496.3,0.00025547,120]
[344048076,1733246450805,-2298.68,0.00025547,120]
[344048077,1733246450852,-596.36,0.00025547,120]
[344048078,1733246450901,-627.97,0.00025547,120]
[344048079,1733246450951,-4752.11,0.00025547,120]
[344048080,1733246451004,-2148.51,0.00025547,120]
[344048081,1733246451053,-500.0,0.00025547,120]
[344048082,1733246451102,-500.0,0.00025547,120]
[344048083,1733246451153,-2364.99,0.00025547,120]
[344048084,1733246451202,-733.41,0.00025547,120]
[344048085,1733246451255,-2379.5,0.00025547,120]
[344048086,1733246451305,-500.0,0.00025547,120]
[344048087,1733246451355,-2237.15,0.00025547,120]
[344048088,1733246451406,-2084.94,0.00025547,120]
[344048089,1733246451458,-9370.58,0.00025547,120]
[344048090,1733246451507,-611.15,0.00025547,120]
[344048091,1733246451557,-1926.38,0.00025547,120]
[344048092,1733246451606,-1381.28,0.00025547,120]
[344048093,1733246451656,-500.0,0.00025547,120]
[344048094,1733246451707,-775.39,0.00025547,120]
[344048095,1733246451760,-3684.94,0.00025547,120]
[344048096,1733246451809,-23749.13,0.00025547,120]
[344048097,1733246451857,-914.5,0.00025547,120]
[344048098,1733246451906,-1132.02,0.00025547,120]
[344048099,1733246451960,-841.83,0.00025547,120]
[344048100,1733246452008,-903.05,0.00025547,120]
[344048101,1733246452055,-1802.22,0.00025547,120]
[344048102,1733246452103,-1089.83,0.00025547,120]
[344048103,1733246452152,-543.05,0.00025547,120]
[344048104,1733246452202,-500.0,0.00025547,120]
[344048105,1733246452266,-1299.06,0.00025547,120]
[344048106,1733246452317,-2068.96,0.00025547,120]
[344048107,1733246452364,-1458.97,0.00025547,120]
[344048108,1733246452413,-500.0,0.00025547,30]
[344048109,1733246452472,-500.0,0.00025547,120]
[344048110,1733246452521,-2922.34,0.00025547,120]
[344048111,1733246452570,-5491.84,0.00025547,120]
[344048112,1733246452619,-1610.78,0.00025547,120]
[344048113,1733246452667,-2244.01,0.00025547,120]
[344048114,1733246452717,-1747.55,0.00025547,120]
[344048115,1733246452765,-500.0,0.00025547,120]
[344048116,1733246452819,-2322.03,0.00025547,120]
[344048117,1733246452871,-1234.87,0.00025547,120]
[344048118,1733246452920,-500.0,0.00025547,120]
[344048119,1733246452970,-1662.03,0.00025547,120]
[344048120,1733246453018,-500.0,0.00025547,120]
[344048121,1733246453067,-1234.8,0.00025547,120]
[344048122,1733246453115,-500.0,0.00025547,120]
[344048123,1733246453164,-500.0,0.00025547,120]
[344048124,1733246453216,-500.0,0.00025547,120]
[344048125,1733246453264,-1524.57,0.00025547,120]
[344048126,1733246453313,-2548.64,0.00025547,120]
[344048127,1733246453360,-2073.91,0.00025547,120]
[344048128,1733246453409,-1271.31,0.00025547,120]
[344048129,1733246453460,-1073.09,0.00025547,120]
[344048130,1733246453510,-1183.71,0.00025547,120]
[344048131,1733246453559,-500.0,0.00025547,120]
[344048132,1733246453609,-1581.55,0.00025547,120]
[344048133,1733246453657,-1093.09,0.00025547,120]
[344048134,1733246453709,-2016.93,0.00025547,120]
[344048135,1733246453760,-1418.92,0.00025547,120]
[344048136,1733246453807,-500.0,0.00025547,120]
[344048137,1733246453863,-500.0,0.00025547,120]
[344048138,1733246453916,-1333.95,0.00025547,120]
[344048139,1733246453967,-500.0,0.00025547,120]
[344048140,1733246454015,-500.0,0.00025547,90]
[344048141,1733246454358,-2825.4,0.00025547,120]
[344048142,1733246454409,-781.0,0.00025547,120]
[344048143,1733246454463,-4081.67,0.00025547,120]
[344048144,1733246454513,-22005.41,0.00025547,120]
[344048145,1733246454560,-596.78245312,0.00025547,30]
[344048146,1733246454610,-688.28,0.00025547,120]
[344048147,1733246454658,-2735.13,0.00025547,120]
[344048148,1733246454706,-4418.43,0.00025547,120]
[344048149,1733246454762,-2084.66,0.00025547,120]
[344048150,1733246454815,-1463.43,0.00025547,120]
[344048151,1733246454872,-1016.78,0.00025547,120]
[344048152,1733246454925,-500.0,0.00025547,120]
[344048153,1733246454974,-500.0,0.00025547,120]
[344048154,1733246455023,-500.0,0.00025547,120]
[344048155,1733246455071,-3331.14,0.00025547,120]
[344048156,1733246455121,-1431.24,0.00025547,120]
[344048157,1733246455169,-500.0,0.00025547,120]
[344048158,1733246455219,-852.3,0.00025547,120]
[344048159,1733246455269,-1735.21,0.00025547,120]
[344048160,1733246455316,-1339.19,0.00025547,120]
[344048161,1733246455367,-518.24,0.00025547,120]
[344048162,1733246455415,-3714.6,0.00025547,120]
[344048163,1733246455465,-500.0,0.00025547,120]
[344048164,1733246455513,-3215.5,0.00025547,120]
[344048165,1733246455561,-1120.17,0.00025547,120]
[344048166,1733246455608,-3321.09,0.00025547,120]
[344048167,1733246455655,-500.0,0.00025547,120]
[344048168,1733246455704,-1758.83,0.00025547,120]
[344048169,1733246455757,-191.20194193,0.00025547,120]
[344048170,1733246455804,-500.0,0.00025547,120]
[344048171,1733246455851,-1486.49,0.00025547,120]
[344048172,1733246455899,-617.57,0.00025547,120]
[344048173,1733246455946,-2726.1,0.00025547,120]
[344048174,1733246455998,-500.0,0.00025547,120]
[344048175,1733246456046,-1047.13,0.00025547,120]
[344048176,1733246456099,-1143.32,0.00025547,120]
[344048177,1733246456146,-500.0,0.00025547,120]
[344048178,1733246456194,-6320.6,0.00025547,120]
[344048179,1733246456243,-500.0,0.00025547,120]
[344048180,1733246456290,-1146.57,0.00025547,120]
[344048181,1733246456337,-1251.8,0.00025547,120]
[344048182,1733246456385,-560.72,0.00025547,120]
[344048183,1733246456435,-500.0,0.00025547,120]
[344048184,1733246456486,-1286.83,0.00025547,120]
[344048185,1733246456538,-500.0,0.00025547,120]
[344048186,1733246456588,-1988.35,0.00025547,120]
[344048187,1733246456638,-500.0,0.00025547,120]
[344048188,1733246456686,-1034.19,0.00025547,120]
[344048189,1733246456735,-1020.72,0.00025547,120]
[344048190,1733246456783,-1053.47,0.00025547,120]
[344048191,1733246456834,-2975.69,0.00025547,120]
[344048192,1733246456881,-2151.16,0.00025547,120]
[344048193,1733246456929,-2039.97,0.00025547,120]
[344048194,1733246456976,-500.0,0.00025547,120]
[344048195,1733246457023,-666.63,0.00025547,120]
[344048196,1733246457073,-14943.14,0.00025547,120]
[344048197,1733246457120,-1500.0,0.00025547,120]
[344048198,1733246457168,-1238.29,0.00025547,120]
[344048199,1733246457218,-500.0,0.00025547,120]
[344048200,1733246457269,-1190.41,0.00025547,120]
[344048201,1733246457317,-1673.82,0.00025547,120]
[344048202,1733246457365,-4522.18,0.00025547,120]
[344048203,1733246457414,-2076.79,0.00025547,120]
[344048204,1733246457464,-500.0,0.00025547,120]
[344048205,1733246457513,-2426.33,0.00025547,120]
[344048206,1733246457561,-500.0,0.00025547,120]
[344048207,1733246457609,-923.51,0.00025547,120]
[344048208,1733246457656,-1065.24,0.00025547,120]
[344048209,1733246457702,-2382.46,0.00025547,120]
[344048210,1733246457752,-500.0,0.00025547,120]
[344048211,1733246457800,-730.98,0.00025547,120]
[344048212,1733246457848,-666.16,0.00025547,120]
[344048213,1733246457897,-3964.5,0.00025547,120]
[344048214,1733246457948,-3683.25,0.00025547,120]
[344048215,1733246457999,-500.0,0.00025547,120]
[344048216,1733246458048,-1130.39,0.00025547,120]
[344048217,1733246458099,-1929.21,0.00025547,120]
[344048218,1733246458150,-1425.11,0.00025547,120]
[344048219,1733246458202,-1322.04,0.00025547,120]
[344048220,1733246458256,-500.0,0.00025547,120]
[344048221,1733246458309,-923.57,0.00025547,120]
[344048222,1733246458360,-500.0,0.00025547,120]
[344048223,1733246458410,-500.0,0.00025547,120]
[344048224,1733246458463,-500.0,0.00025547,120]
[344048225,1733246458520,-1668.49,0.00025547,120]
[344048226,1733246458574,-2376.66,0.00025547,120]
[344048227,1733246458623,-1502.95,0.00025547,120]
[344048228,1733246458671,-500.0,0.00025547,120]
[344048229,1733246458721,-1175.74,0.00025547,120]
[344048230,1733246458768,-1327.7,0.00025547,120]
[344048231,1733246458816,-500.0,0.00025547,120]
[344048232,1733246458866,-1137.75,0.00025547,120]
[344048233,1733246458923,-1098.72,0.00025547,120]
[344048234,1733246458974,-500.0,0.00025547,120]
[344048235,1733246459277,-1959.5,0.00025547,120]
[344048236,1733246459329,-8592.48,0.00025547,120]
[344048237,1733246459378,-625.08,0.00025547,120]
[344048238,1733246459426,-500.0,0.00025547,120]
[344048239,1733246459474,-1847.19,0.00025547,120]
[344048240,1733246459522,-500.0,0.00025547,120]
[344048241,1733246459570,-1500.21,0.00025547,120]
[344048242,1733246459618,-500.0,0.00025547,120]
[344048243,1733246459666,-1095.14,0.00025547,120]
[344048244,1733246459718,-1129.91,0.00025547,120]
[344048245,1733246459764,-989.91,0.00025547,120]
[344048246,1733246459811,-500.0,0.00025547,120]
[344048247,1733246459856,-500.0,0.00025547,120]
[344048248,1733246459903,-500.0,0.00025547,120]
[344048249,1733246459952,-1456.3,0.00025547,120]
[344048250,1733246460005,-1109.86,0.00025547,120]
[344048251,1733246460056,-500.0,0.00025547,120]
[344048252,1733246460108,-1458.18,0.00025547,120]
[344048253,1733246460164,-500.0,0.00025547,120]
[344048254,1733246460221,-3219.04,0.00025547,120]
[344048255,1733246460273,-1619.82,0.00025547,120]
[344048256,1733246460325,-500.0,0.00025547,120]
[344048257,1733246460383,-735.68,0.00025547,120]
[344048258,1733246460436,-1791.28,0.00025547,120]
[344048259,1733246460488,-500.0,0.00025547,120]
[344048260,1733246460542,-6083.11,0.00025547,120]
[344048261,1733246460594,-1182.85,0.00025547,120]
[344048262,1733246460645,-1372.24,0.00025547,120]
[344048263,1733246460695,-5064.19,0.00025547,120]
[344048264,1733246460744,-1801.52,0.00025547,120]
[344048265,1733246460793,-7053.22,0.00025547,120]
[344048266,1733246460846,-633.24,0.00025547,120]
[344048267,1733246460895,-1727.09,0.00025547,120]
[344048268,1733246460946,-500.0,0.00025547,60]
[344048269,1733246461002,-1768.81,0.00025547,120]
[344048270,1733246461051,-177.80800556,0.00025547,120]
[344048271,1733246461103,-1811.25,0.00025547,120]
[344048272,1733246461156,-500.0,0.00025547,120]
[344048273,1733246461209,-6817.49,0.00025547,120]
[344048274,1733246461263,-500.0,0.00025547,120]
[344048275,1733246461312,-4315.08,0.00025547,120]
[344048276,1733246461362,-500.0,0.00025547,120]
[344048277,1733246461410,-505.68679889,0.00025547,120]
[344048278,1733246461457,-794.0,0.00025547,120]
[344048279,1733246461515,-500.0,0.00025547,120]
[344048280,1733246461564,-500.0,0.00025547,120]
[344048281,1733246461615,-1834.56,0.00025547,120]
[344048282,1733246461666,-2163.69,0.00025547,120]
[344048283,1733246461722,-523.36,0.00025547,120]
[344048284,1733246461781,-1954.17,0.00025547,120]
[344048285,1733246461838,-500.0,0.00025547,120]
[344048286,1733246461888,-1431.07,0.00025547,120]
[344048287,1733246461938,-1904.97,0.00025547,120]
[344048288,1733246461990,-1369.29,0.00025547,120]
[344048289,1733246462042,-500.0,0.00025547,120]
[344048290,1733246462093,-1476.53,0.00025547,120]
[344048291,1733246462144,-713.61,0.00025547,120]
[344048292,1733246462195,-787.68,0.00025547,120]
[344048293,1733246462244,-538.26590915,0.00025547,120]
[344048294,1733246462293,-1918.45,0.00025547,120]
[344048295,1733246462342,-500.0,0.00025547,120]
[344048296,1733246462390,-500.0,0.00025547,120]
[344048297,1733246462439,-1392.84,0.00025547,120]
[344048298,1733246462488,-500.0,0.00025547,120]
[344048299,1733246462538,-3449.59,0.00025547,120]
[344048300,1733246462587,-1120.44,0.00025547,120]
[344048301,1733246462635,-500.0,0.00025547,120]
[344048302,1733246462682,-500.0,0.00025547,120]
[344048303,1733246462728,-1900.12,0.00025547,120]
[344048304,1733246462773,-4022.63,0.00025547,120]
[344048305,1733246462818,-2474.06,0.00025547,120]
[344048306,1733246462863,-500.0,0.00025547,120]
[344048307,1733246462912,-602.36,0.00025547,120]
[344048308,1733246462959,-2205.08,0.00025547,120]
[344048309,1733246463009,-978.37,0.00025547,120]
[344048310,1733246463069,-754.6,0.00025547,120]
[344048311,1733246463124,-550.78,0.00025547,120]
[344048312,1733246463175,-1095.87,0.00025547,120]
[344048313,1733246463236,-500.0,0.00025547,120]
[344048314,1733246463294,-727.03,0.00025547,120]
[344048315,1733246463349,-613.46,0.00025547,120]
[344048316,1733246463401,-500.0,0.00025547,120]
[344048317,1733246463453,-500.0,0.00025547,120]
[344048318,1733246463508,-1324.03,0.00025547,120]
[344048319,1733246463562,-500.0,0.00025547,120]
[344048320,1733246463617,-1886.65,0.00025547,120]
[344048321,1733246463667,-782.65,0.00025547,120]
[344048322,1733246463718,-500.0,0.00025547,120]
[344048323,1733246463768,-1417.04,0.00025547,120]
[344048324,1733246463819,-500.0,0.00025547,120]
[344048325,1733246463870,-1695.88,0.00025547,120]
[344048326,1733246463924,-500.0,0.00025547,120]
[344048327,1733246463980,-2488.69,0.00025547,120]
[344048328,1733246464032,-500.0,0.00025547,120]
[344048329,1733246464085,-3286.92,0.00025547,30]
[344048330,1733246464553,-588.15,0.00025547,120]
[344048331,1733246464607,-377.83794593,0.00025547,120]
[344048332,1733246464657,-1038.17,0.00025547,120]
[344048333,1733246464708,-1366.96,0.00025547,120]
[344048334,1733246464762,-6048.91,0.00025547,120]
[344048335,1733246464812,-1476.51,0.00025547,120]
[344048336,1733246464862,-241.8539428,0.00025547,120]
[344048337,1733246464913,-817.84,0.00025547,120]
[344048338,1733246464963,-214.14,0.00025547,120]
[344048339,1733246465015,-1694.87,0.00025547,120]
[344048340,1733246465065,-500.0,0.00025547,120]
[344048341,1733246465113,-1769.97,0.00025547,120]
[344048342,1733246465160,-500.0,0.00025547,120]
[344048343,1733246465208,-887.92,0.00025547,120]
[344048344,1733246465256,-500.0,0.00025547,120]
[344048345,1733246465302,-500.0,0.00025547,120]
[344048346,1733246465349,-500.0,0.00025547,120]
[344048347,1733246465396,-500.0,0.00025547,120]
[344048348,1733246465450,-500.0,0.00025547,120]
[344048349,1733246465499,-500.0,0.00025547,120]
[344048350,1733246465547,-1078.5,0.00025547,120]
[344048351,1733246465595,-500.0,0.00025547,120]
[344048352,1733246465642,-2376.67,0.00025547,120]
[344048353,1733246465696,-3029.75,0.00025547,120]
[344048354,1733246465744,-2962.5,0.00025547,120]
[344048355,1733246465792,-611.66,0.00025547,120]
[344048356,1733246465840,-500.0,0.00025547,120]
[344048357,1733246465887,-531.75,0.00025547,120]
[344048358,1733246465942,-500.0,0.00025547,120]
[344048359,1733246465999,-8037.32,0.00025547,120]
[344048360,1733246466050,-525.72358031,0.00025547,120]
[344048361,1733246466101,-500.0,0.00025547,120]
[344048362,1733246466154,-500.0,0.00025547,120]
[344048363,1733246466207,-1556.61,0.00025547,120]
[344048364,1733246466257,-521.33,0.00025547,120]
[344048365,1733246466309,-10547.32,0.00025547,120]